bitfinex-derivatives/quotes_SOLF0:USTF0_20250626
["timestamp","ask_amount","ask_price","bid_price","bid_amount"]
[1750910458369,37.73970838,146.01,145.96,6.8472]
[1750910458764,37.73970838,146.01,145.95,8.50497717]
[1750910458963,37.73970838,146.01,145.95,6.8477]
[1750910458964,6.8463,145.99,145.95,6.8477]
[1750910460172,6.8463,145.99,145.96,6.8474]
[1750910461770,6.8465,145.98,145.95,6.8477]
[1750910461970,37.73970838,146.01,145.95,6.8477]
[1750910462373,6.8462,145.99,145.95,6.8477]
[1750910462770,6.8462,145.99,145.96,6.8474]
[1750910463279,37.73970838,146.01,145.95,8.50497717]
[1750910463280,6.8457,146.0,145.95,8.50497717]
[1750910463465,6.8457,146.0,145.95,10.95347717]
[1750910464678,6.8457,146.0,145.97,6.8467]
[1750910467772,6.8457,146.0,145.96,6.8472]
[1750910470275,6.8461,145.99,145.96,6.8472]
[1750910470985,6.8458,146.0,145.96,6.8472]
[1750910471475,6.8461,145.99,145.96,6.8472]
[1750910472281,6.8461,145.99,145.95,9.2962]
[1750910472481,3.37970838,145.99,145.95,2.4485]
[1750910473085,6.8468,145.98,145.95,2.4485]
[1750910473482,3.37970838,145.99,145.95,2.4485]
[1750910473883,3.37970838,145.97,145.93,2.4107]
[1750910474086,3.37970838,145.95,145.91,8.50497717]
[1750910474385,3.37970838,145.93,145.89,8.50497717]
[1750910474589,3.37970838,145.91,145.87,10.89017717]
[1750910474886,6.8503,145.9,145.87,17.74157717]
[1750910475287,6.8503,145.9,145.87,9.2366]
[1750910475688,6.8507,145.89,145.87,2.3852]
[1750910475887,6.8507,145.89,145.86,9.2274]
[1750910476291,6.8512,145.88,145.84,8.50497717]
[1750910476477,3.37970838,145.89,145.83,47.61297717]
[1750910476883,3.37970838,145.89,145.85,6.8523]
[1750910477087,3.37970838,145.89,145.83,47.61297717]
[1750910478085,3.37970838,145.89,145.86,6.852]
[1750910478587,34.36,145.93,145.86,3.38065403]
[1750910478786,3.37882327,145.96,145.88,3.37882327]
[1750910478991,3.37882327,145.96,145.89,6.9299]
[1750910479291,6.848,145.95,145.91,6.8494]
[1750910479995,6.8476,145.96,145.92,6.8492]
[1750910480288,37.75882327,145.97,145.92,6.8492]
[1750910481589,6.8479,145.95,145.92,6.8492]
[1750910484698,6.8479,145.95,145.91,6.8496]
[1750910486404,6.8484,145.94,145.91,6.8496]
[1750910486700,37.75882327,145.97,145.91,6.8496]
[1750910486902,6.8482,145.95,145.91,6.8496]
[1750910487101,3.37882327,145.96,145.9,6.85]
[1750910487801,6.8491,145.93,145.89,6.9299]
[1750910488396,3.37882327,145.94,145.89,6.9299]
[1750910488597,3.37882327,145.94,145.89,4.5687]
[1750910488901,34.4,145.93,145.89,4.5687]
[1750910489095,6.8496,145.92,145.89,4.5687]
[1750910490102,6.8497,145.91,145.89,4.5687]
[1750910490499,34.4,145.93,145.89,4.5687]
[1750910490906,6.8494,145.92,145.89,4.5687]
[1750910491403,6.8494,145.92,145.89,11.4194]
[1750910492311,6.8494,145.92,145.89,4.5687]
[1750910495001,34.4,145.93,145.89,4.5687]
[1750910495204,37.77882327,145.96,145.89,4.5687]
[1750910495406,37.77882327,145.96,145.89,6.8948]
[1750910495608,37.77882327,145.96,145.9,6.85]
[1750910496701,6.8487,145.94,145.9,6.85]
[1750910497509,6.8487,145.94,145.91,6.8496]
[1750910497904,6.8487,145.94,145.89,6.8948]
[1750910498099,37.77882327,145.96,145.89,6.8948]
[1750910498303,3.37882327,145.94,145.89,6.8948]
[1750910498611,6.8493,145.92,145.89,6.8948]
[1750910498814,6.8493,145.92,145.89,4.5687]
[1750910499504,6.8497,145.91,145.89,4.5687]
[1750910499704,6.8497,145.91,145.88,6.8509]
[1750910501310,34.4,145.92,145.85,19.96087717]
[1750910501311,6.8511,145.88,145.85,19.96087717]
[1750910501512,3.37882327,145.88,145.85,4.6036]
[1750910501707,3.37882327,145.88,145.85,2.2292]
[1750910502013,6.8521,145.86,145.85,2.2292]
[1750910502217,6.8521,145.86,145.83,2.2798]
[1750910502719,6.8526,145.85,145.82,8.50497717]
[1750910502915,3.37882327,145.86,145.81,47.68477717]
[1750910503115,3.37882327,145.86,145.81,13.28477717]
[1750910503322,3.37882327,145.86,145.81,4.7798]
[1750910504513,3.37882327,145.86,145.83,6.8533]
[1750910505415,3.37882327,145.86,145.82,6.8538]
[1750910505610,3.37882327,145.86,145.81,4.7798]
[1750910506007,6.8532,145.84,145.81,11.6339]
[1750910506712,6.8527,145.85,145.81,11.6339]
[1750910506915,3.37882327,145.86,145.81,11.6339]
[1750910508521,3.37882327,145.86,145.81,2.4054]
[1750910508716,3.37882327,145.84,145.81,2.4054]
[1750910509024,6.8538,145.83,145.81,2.4054]
[1750910510526,3.38395734,145.87,145.81,2.4054]
[1750910511122,6.8533,145.84,145.81,2.4054]
[1750910511924,6.8536,145.83,145.79,6.8552]
[1750910512123,34.42,145.84,145.79,6.8552]
[1750910512328,6.8549,145.8,145.78,2.4399]
[1750910513928,3.38395734,145.83,145.78,2.4399]
[1750910514121,34.42,145.84,145.78,2.4399]
[1750910514320,34.42,145.84,145.78,4.7392]
[1750910514516,6.8536,145.83,145.79,6.8551]
[1750910515328,6.854,145.82,145.79,6.8551]
[1750910515525,37.80414611,145.84,145.8,6.8547]
[1750910515920,44.65724611,145.84,145.8,6.8547]
[1750910516322,37.80414611,145.84,145.8,6.8547]
[1750910516518,6.854,145.82,145.78,4.7392]
[1750910517017,6.8545,145.81,145.78,11.5948]
[1750910517214,37.80414611,145.84,145.78,11.5948]
[1750910517727,6.8543,145.82,145.78,11.5948]
[1750910518827,6.8543,145.82,145.79,6.8553]
[1750910521230,37.80414611,145.84,145.79,6.8553]
[1750910522431,6.8542,145.82,145.79,6.8553]
[1750910525029,6.8542,145.82,145.78,4.7392]
[1750910526530,6.8542,145.82,145.79,6.8554]
[1750910530326,6.8542,145.82,145.78,11.5949]
[1750910531233,37.80414611,145.84,145.78,4.7392]
[1750910531435,37.80414611,145.84,145.78,2.4399]
[1750910531731,3.38414611,145.82,145.78,2.4399]
[1750910531933,3.38414611,145.82,145.74,42.92497717]
[1750910531934,3.38414611,145.8,145.74,167.92497717]
[1750910532237,38.04414611,145.8,145.74,34.42]
[1750910532435,6.8561,145.78,145.75,6.8571]
[1750910533526,6.8561,145.78,145.74,41.2775]
[1750910533928,38.04414611,145.8,145.74,6.8577]
[1750910534127,38.04414611,145.8,145.73,6.8252]
[1750910534327,3.38414611,145.78,145.73,6.8252]
[1750910534535,6.8571,145.76,145.73,6.8252]
[1750910535037,3.38414611,145.78,145.73,6.8252]
[1750910535738,6.8569,145.76,145.73,6.8252]
[1750910536323,3.38414611,145.78,145.73,6.8252]
[1750910536324,6.8573,145.75,145.73,6.8252]
[1750910536635,3.38414611,145.78,145.73,11.4065]
[1750910537335,3.38414611,145.78,145.73,6.8581]
[1750910537535,3.38414611,145.76,145.72,6.8585]
[1750910537836,34.66,145.8,145.69,140.62620941]
[1750910538030,6.8564,145.77,145.74,6.8577]
[1750910538227,6.8564,145.77,145.7,11.87635552]
[1750910538427,6.8564,145.77,145.73,6.858]
[1750910540731,38.06414611,145.76,145.7,8.49220941]
[1750910541033,3.38414611,145.74,145.69,7.134]
[1750910541238,6.8587,145.72,145.69,13.994]
[1750910541734,6.8587,145.72,145.69,7.134]
[1750910541943,3.38414611,145.72,145.66,43.17220941]
[1750910542238,3.38414611,145.73,145.68,6.8602]
[1750910543240,6.8588,145.72,145.68,6.8602]
[1750910544140,3.38414611,145.73,145.66,38.06414611]
[1750910544437,3.38414611,145.73,145.67,15.53950941]
[1750910544839,3.38414611,145.73,145.67,7.0473]
[1750910545231,6.8591,145.72,145.68,6.8604]
[1750910545638,3.38414611,145.73,145.67,7.0473]
[1750910545838,3.38414611,145.73,145.67,13.9081]
[1750910546042,3.38414611,145.73,145.67,11.5473]
[1750910546433,6.8596,145.7,145.67,4.6865]
[1750910547444,6.8593,145.71,145.67,11.5475]
[1750910547945,3.38414611,145.73,145.67,4.6865]
[1750910548335,3.38414611,145.73,145.67,13.17870941]
[1750910548629,3.38414611,145.73,145.67,4.6865]
[1750910549034,6.8582,145.73,145.7,6.8595]
[1750910549229,6.8582,145.73,145.67,4.6865]
[1750910549435,6.8582,145.73,145.68,2.3028]
[1750910549844,6.8582,145.73,145.69,6.8598]
[1750910550043,41.5378,145.74,145.68,2.3028]
[1750910550338,34.68,145.74,145.68,2.3028]
[1750910551144,34.68,145.74,145.69,6.86]
[1750910551337,34.68,145.74,145.67,18.86645552]
[1750910551538,6.8584,145.73,145.69,6.8597]
[1750910552142,3.38414611,145.76,145.67,143.86645552]
[1750910552337,34.58,145.79,145.71,3.38414611]
[1750910552643,34.58,145.79,145.72,4.615]
[1750910552838,34.58,145.79,145.73,3.38414611]
[1750910553042,37.96414611,145.82,145.75,3.38414611]
[1750910553347,34.58,145.82,145.75,3.38414611]
[1750910553837,34.58,145.82,145.74,43.07220941]
[1750910554033,37.96414611,145.82,145.74,46.45635552]
[1750910554432,6.8545,145.81,145.77,6.856]
[1750910555443,41.4341,145.82,145.78,6.8558]
[1750910555637,34.58,145.82,145.78,6.8558]
[1750910555840,3.38414611,145.84,145.78,6.8558]
[1750910557546,6.8545,145.81,145.77,6.8562]
[1750910558950,6.8545,145.81,145.78,6.8558]
[1750910559242,6.8545,145.81,145.76,3.38414611]
[1750910559447,6.8545,145.81,145.75,8.49220941]
[1750910559448,3.38414611,145.82,145.75,15.34910941]
[1750910559645,3.38414611,145.82,145.75,6.8569]
[1750910561439,6.8563,145.77,145.74,159.58]
[1750910561645,6.8563,145.77,145.74,34.58]
[1750910561839,6.8568,145.76,145.74,34.58]
[1750910562042,3.38414611,145.8,145.73,2.3167]
[1750910562242,3.38414611,145.78,145.73,2.3167]
[1750910563454,6.8573,145.75,145.73,2.3167]
[1750910565346,6.8577,145.74,145.72,2.3114]
[1750910566544,6.8574,145.75,145.72,2.3114]
[1750910569652,6.8569,145.76,145.72,2.3114]
[1750910570555,6.8569,145.76,145.73,6.8582]
[1750910571547,6.8567,145.77,145.74,6.8576]
[1750910571753,34.58,145.8,145.74,6.8576]
[1750910571947,37.96414611,145.8,145.73,8.49220941]
[1750910572148,6.8559,145.78,145.74,6.8576]
[1750910572547,34.58,145.9,145.76,6.77144654]
[1750910572857,34.58,145.9,145.81,11.87793268]
[1750910572858,3.38572327,145.89,145.81,11.87793268]
[1750910573046,3.38572327,145.87,145.78,11.87793268]
[1750910573248,6.8533,145.84,145.8,6.8545]
[1750910575055,6.8527,145.85,145.81,6.8543]
[1750910578647,3.38291921,145.88,145.82,6.8538]
[1750910578849,3.38291921,145.88,145.81,35.0]
[1750910579649,6.8521,145.86,145.82,6.8539]
[1750910580253,6.8526,145.85,145.82,6.8539]
[1750910580454,3.38291921,145.88,145.81,41.8542]
[1750910581261,3.38291921,145.88,145.81,35.0]
[1750910581868,6.8528,145.85,145.81,41.8544]
[1750910582364,3.38291921,145.88,145.81,35.0]
[1750910582564,6.8522,145.86,145.81,35.0]
[1750910583168,6.8522,145.86,145.82,6.8536]
[1750910584668,6.8527,145.85,145.81,41.8543]
[1750910584858,3.38291921,145.88,145.81,41.8543]
[1750910585366,6.8528,145.85,145.81,41.8543]
[1750910585854,6.853,145.84,145.81,41.8543]
[1750910587366,6.8527,145.85,145.81,41.8543]
[1750910588970,3.38291921,145.88,145.81,35.0]
[1750910590472,6.8535,145.83,145.81,35.0]
[1750910590869,3.38291921,145.86,145.81,35.0]
[1750910591068,3.38291921,145.86,145.78,2.3767]
[1750910591272,3.38291921,145.84,145.78,2.3767]
[1750910591466,38.36291921,145.84,145.78,2.3767]
[1750910592074,6.8554,145.79,145.78,2.3767]
[1750910593671,3.38291921,145.82,145.76,34.98]
[1750910593975,3.38291921,145.82,145.73,51.61542862]
[1750910594182,3.38291921,145.8,145.73,176.61542862]
[1750910594880,6.8571,145.76,145.73,176.61542862]
[1750910596178,6.8564,145.77,145.73,176.61542862]
[1750910596472,6.8564,145.77,145.74,8.49220941]
[1750910596680,3.38291921,145.8,145.74,8.49220941]
[1750910598577,6.8568,145.76,145.74,8.49220941]
[1750910600382,6.8572,145.75,145.74,8.49220941]
[1750910600682,38.38291921,145.8,145.73,129.7603]
[1750910600883,38.38291921,145.8,145.73,4.7603]
[1750910601577,6.8577,145.74,145.73,4.7603]
[1750910601778,3.38291921,145.78,145.72,37.4426]
[1750910601979,3.38291921,145.78,145.72,35.0]
[1750910602985,6.8582,145.73,145.7,14.33172862]
[1750910603182,3.38291921,145.76,145.7,2.4566]
[1750910603380,3.38291921,145.76,145.7,10.94880941]
[1750910603581,6.8581,145.74,145.7,10.94880941]
[1750910603790,6.8581,145.74,145.71,2.4439]
[1750910604288,6.8582,145.73,145.71,2.4439]
[1750910604782,3.38291921,145.78,145.71,2.4439]
[1750910604783,3.38291921,145.76,145.71,2.4439]
[1750910605184,6.8587,145.72,145.69,38.38291921]
[1750910605484,6.8587,145.72,145.69,35.0]
[1750910606387,6.8587,145.72,145.68,21.16322862]
[1750910606388,3.38291921,145.74,145.68,10.92000941]
[1750910606588,3.38291921,145.74,145.68,2.4278]
[1750910606898,6.8594,145.71,145.68,2.4278]
[1750910607402,6.8588,145.72,145.68,9.2883]
[1750910608700,35.0,145.76,145.68,14.30292862]
[1750910609000,35.0,145.76,145.68,139.30292862]
[1750910609196,6.8575,145.75,145.71,6.8588]
[1750910610401,38.30291921,145.79,145.71,34.92]
[1750910610599,34.92,145.79,145.71,168.41220941]
[1750910610796,38.30291921,145.79,145.71,168.41220941]
[1750910611098,6.8568,145.77,145.73,6.8579]
[1750910611300,38.30291921,145.79,145.71,168.41220941]
[1750910611499,38.30291921,145.79,145.71,159.92]
[1750910612404,6.8571,145.76,145.71,159.92]
[1750910613003,6.8571,145.76,145.71,168.41220941]
[1750910613305,6.8565,145.77,145.73,6.8582]
[1750910613606,3.38291921,145.81,145.74,3.38291921]
[1750910613808,3.38291921,145.81,145.74,10.54111921]
[1750910614199,6.8555,145.79,145.75,6.857]
[1750910616109,6.8558,145.78,145.74,17.39871921]
[1750910616309,6.8558,145.78,145.74,14.0158]
[1750910616500,3.38291921,145.81,145.74,7.1582]
[1750910616705,6.8555,145.79,145.75,6.8569]
[1750910617006,3.38291921,145.81,145.74,10.54111921]
[1750910617206,3.38291921,145.81,145.75,34.92]
[1750910618711,34.92,145.82,145.75,43.41220941]
[1750910618918,6.8547,145.81,145.75,43.41220941]
[1750910619505,6.8549,145.8,145.76,6.8566]
[1750910625318,6.8555,145.79,145.76,6.8566]
[1750910625619,6.8555,145.79,145.75,168.41220941]
[1750910625620,6.8555,145.79,145.75,175.26930941]
[1750910627020,6.8555,145.79,145.75,166.7771]
[1750910627221,6.8559,145.78,145.75,125.0]
[1750910627413,6.8559,145.78,145.74,150.89102862]
[1750910631029,6.8559,145.78,145.75,6.8571]
[1750910632121,6.8559,145.78,145.75,15.34930941]
[1750910633021,6.8559,145.78,145.75,6.8571]
[1750910635127,6.8564,145.77,145.74,140.65040941]
[1750910636027,6.8569,145.76,145.74,140.65040941]
[1750910636326,6.8569,145.76,145.74,132.1582]
[1750910636527,6.8572,145.75,145.74,2.4318]
[1750910637123,6.8572,145.75,145.72,8.49220941]
[1750910637327,3.38291921,145.77,145.72,8.49220941]
[1750910637523,3.38291921,145.77,145.71,43.41220941]
[1750910639028,6.8571,145.76,145.71,43.41220941]
[1750910639326,6.8571,145.76,145.71,50.27100941]
[1750910640329,6.8575,145.75,145.71,50.27100941]
[1750910640524,6.8575,145.75,145.71,15.35100941]
[1750910640927,3.38291921,145.75,145.7,13.21240941]
[1750910641130,3.38291921,145.75,145.7,4.7202]
[1750910641523,3.38291921,145.75,145.69,8.49220941]
[1750910641726,3.38291921,145.73,145.67,8.49220941]
[1750910642028,3.38291921,145.73,145.69,6.8598]
[1750910642521,3.38291921,145.73,145.68,8.49220941]
[1750910642725,6.8587,145.72,145.68,15.35240941]
[1750910643327,6.8587,145.72,145.68,6.8602]
[1750910643726,6.8592,145.71,145.67,15.35300941]
[1750910643928,3.38291921,145.73,145.67,8.49220941]
[1750910644325,6.8591,145.72,145.67,6.8606]
[1750910645224,34.68,145.74,145.66,8.49220941]
[1750910645225,3.38291921,145.71,145.66,15.35350941]
[1750910645827,6.8599,145.7,145.66,15.35350941]
[1750910646232,3.38291921,145.71,145.66,8.49220941]
[1750910646425,3.38291921,145.71,145.65,15.35410941]
[1750910646622,3.38291921,145.71,145.65,8.49220941]
[1750910646820,3.38291921,145.71,145.65,15.35400941]
[1750910647025,6.8599,145.7,145.65,8.49220941]
[1750910647223,41.5399,145.7,145.65,8.49220941]
[1750910647424,41.5399,145.7,145.65,15.35380941]
[1750910647621,41.5399,145.7,145.65,8.49220941]
[1750910648134,34.68,145.7,145.65,8.49220941]
[1750910648337,38.06291921,145.73,145.66,8.49220941]
[1750910648633,38.06291921,145.73,145.65,8.49220941]
[1750910648832,6.8596,145.71,145.66,6.8613]
[1750910649033,3.38291921,145.71,145.66,6.8613]
[1750910650140,6.8598,145.7,145.66,6.8613]
[1750910650641,6.8603,145.69,145.65,6.8618]
[1750910651940,6.8606,145.68,145.66,6.38012]
[1750910653936,6.8606,145.68,145.65,6.38012]
[1750910654240,3.38291921,145.71,145.65,6.38012]
[1750910654241,6.8601,145.69,145.65,6.38012]
[1750910654737,6.8597,145.7,145.65,6.38012]
[1750910654941,3.38291921,145.72,145.66,6.38012]
[1750910655440,6.8604,145.69,145.65,13.24192]
[1750910656842,3.38291921,145.68,145.64,4.5123]
[1750910657042,3.38291921,145.68,145.63,6.38012]
[1750910657342,6.8615,145.66,145.63,6.38012]
[1750910657843,6.8621,145.65,145.61,140.69532]
[1750910658039,34.7,145.69,145.61,8.83152]
[1750910658236,38.08291921,145.69,145.62,6.38012]
[1750910658738,6.8613,145.67,145.63,6.8626]
[1750910659342,38.08291921,145.69,145.62,6.38012]
[1750910660033,6.8615,145.66,145.62,13.24332]
[1750910660346,6.8615,145.66,145.62,6.8632]
[1750910660540,6.862,145.65,145.61,15.69522]
[1750910661234,3.38291921,145.67,145.61,8.83152]
[1750910662333,592.76,145.67,145.56,6.38012]
[1750910662639,1.2492,145.66,145.55,6.38012]
[1750910662837,592.76,145.67,145.55,6.38012]
[1750910662838,3.39530369,145.62,145.57,6.38012]
[1750910663036,6.8629,145.63,145.58,4.7524]
[1750910663344,3.39530369,145.64,145.58,4.7524]
[1750910663942,3.39530369,145.62,145.56,8.67142]
[1750910664144,36.24,145.61,145.56,2.2913]
[1750910664442,39.63530369,145.64,145.57,9.77542369]
[1750910664648,39.63530369,145.64,145.58,2.3418]
[1750910665043,39.63530369,145.64,145.59,9.1904]
[1750910665344,39.63530369,145.64,145.58,6.38012]
[1750910665732,635.8614,145.67,145.6,6.38012]
[1750910665936,43.1014,145.67,145.61,12.05842369]
[1750910666236,36.24,145.67,145.62,2.4226]
[1750910666736,36.24,145.67,145.63,2.2387]
[1750910666942,43.0997,145.7,145.65,6.8618]
[1750910669147,6.8601,145.69,145.65,6.8618]
[1750910671048,39.63088836,145.7,145.63,2.2387]
[1750910671242,3.39088836,145.68,145.63,2.2387]
[1750910672548,6.8618,145.66,145.63,2.2387]
[1750910673053,3.39088836,145.68,145.63,2.2387]
[1750910674241,6.8619,145.66,145.63,2.2387]
[1750910674441,3.39088836,145.68,145.63,2.2387]
[1750910675538,6.8623,145.65,145.63,2.2387]
[1750910676850,43.1016,145.66,145.63,2.2387]
[1750910677049,36.24,145.66,145.63,2.2387]
[1750910677446,36.24,145.66,145.63,9.1012]
[1750910677744,5.33310625,145.73,145.64,6.38012]
[1750910677745,36.24,145.69,145.64,6.38012]
[1750910677946,39.63210993,145.7,145.64,6.38012]
[1750910678147,6.8604,145.69,145.64,13.24242]
[1750910678539,36.24,145.7,145.64,6.38012]
[1750910678853,36.24,145.7,145.65,6.38012]
[1750910679149,6.8601,145.69,145.66,6.38012]
[1750910679346,36.24,145.7,145.66,6.38012]
[1750910679547,36.24,145.7,145.64,6.38012]
[1750910679548,3.39022686,145.69,145.64,6.38012]
[1750910679950,6.8618,145.66,145.64,6.38012]
[1750910680149,3.39022686,145.69,145.64,6.38012]
[1750910681152,3.39022686,145.67,145.64,6.38012]
[1750910681646,6.8615,145.66,145.64,6.38012]
[1750910682056,3.39022686,145.67,145.64,6.38012]
[1750910682352,6.8615,145.66,145.64,6.38012]
[1750910682549,36.24,145.72,145.64,8.49220941]
[1750910682743,36.24,145.72,145.68,6.39148475]
[1750910682945,6.8592,145.71,145.68,6.39148475]
[1750910684341,6.8592,145.71,145.69,6.39148475]
[1750910686158,43.0988,145.72,145.69,6.39148475]
[1750910686349,36.24,145.75,145.71,6.39148475]
[1750910686549,3.39022686,145.76,145.71,6.39148475]
[1750910686550,39.63022686,145.76,145.71,6.39148475]
[1750910686856,6.8576,145.75,145.72,6.39148475]
[1750910687058,39.63022686,145.76,145.73,6.39148475]
[1750910687059,36.24,145.76,145.73,6.39148475]
[1750910687249,3.39022686,145.78,145.73,6.39148475]
[1750910687449,3.39022686,145.78,145.76,6.39148475]
[1750910687761,6.8562,145.78,145.76,6.39148475]
[1750910688248,6.8562,145.78,145.75,6.39148475]
[1750910688453,39.63022686,145.79,145.75,6.39148475]
[1750910689061,6.8566,145.77,145.75,6.39148475]
[1750910689357,6.8559,145.78,145.75,6.39148475]
[1750910690653,36.24,145.79,145.75,6.39148475]
[1750910690956,36.24,145.79,145.76,6.39148475]
[1750910691158,43.0954,145.79,145.76,6.39148475]
[1750910691361,36.24,145.79,145.76,6.39148475]
[1750910691558,3.39022686,145.81,145.76,6.39148475]
[1750910691760,6.8545,145.81,145.76,6.39148475]
[1750910692058,39.63022686,145.82,145.76,6.39148475]
[1750910692260,36.24,145.82,145.76,6.39148475]
[1750910692661,36.24,145.82,145.77,2.3589]
[1750910693659,6.8545,145.81,145.77,9.2151]
[1750910693865,36.24,145.82,145.77,2.3589]
[1750910694963,6.8552,145.8,145.77,2.3589]
[1750910695464,6.8546,145.81,145.77,9.215]
[1750910695758,36.24,145.82,145.77,2.3589]
[1750910696961,43.0941,145.82,145.77,2.3589]
[1750910697758,36.24,145.82,145.77,2.3589]
[1750910698153,6.8532,145.84,145.79,6.855]
[1750910698663,6.8532,145.84,145.8,6.8548]
[1750910699165,42.9328,145.85,145.79,3.39022686]
[1750910699464,42.9328,145.85,145.8,2.3558]
[1750910699651,42.9328,145.85,145.81,6.8541]
[1750910699848,42.9328,145.85,145.8,2.3558]
[1750910699849,36.08,145.85,145.8,2.3558]
[1750910700066,3.39022686,145.87,145.8,2.3558]
[1750910700264,6.8524,145.86,145.82,6.8539]
[1750910700859,6.8526,145.85,145.82,6.8539]
[1750910701062,6.8526,145.85,145.81,6.8543]
[1750910701258,3.38263584,145.91,145.8,163.4358]
[1750910701464,3.38113185,145.91,145.83,6.8531]
[1750910701859,6.8526,145.85,145.8,38.4358]
[1750910702265,6.8526,145.85,145.81,6.8541]
[1750910702567,3.38113185,145.87,145.8,38.4358]
[1750910702760,3.38113185,145.87,145.8,45.2904]
[1750910702966,6.8522,145.86,145.8,38.4358]
[1750910703165,3.38113185,145.87,145.8,38.4358]
[1750910703565,6.8522,145.86,145.8,38.4358]
[1750910704066,6.8522,145.86,145.82,6.8537]
[1750910704872,6.8519,145.87,145.83,6.8535]
[1750910706568,39.46113185,145.88,145.8,38.4358]
[1750910706569,3.38113185,145.86,145.8,38.4358]
[1750910706971,3.38113185,145.86,145.8,2.3558]
[1750910707776,36.08,145.88,145.8,2.3558]
[1750910707967,3.38113185,145.87,145.8,5.73693185]
[1750910708171,36.08,145.88,145.8,5.73693185]
[1750910708379,6.8524,145.86,145.82,6.8538]
[1750910709174,6.8526,145.85,145.81,6.8543]
[1750910709571,3.38113185,145.87,145.8,5.73693185]
[1750910709772,6.8523,145.86,145.82,6.8536]
[1750910710780,6.8523,145.86,145.83,6.8533]
[1750910711973,6.8523,145.86,145.82,6.8538]
[1750910713081,6.8526,145.85,145.81,6.8541]
[1750910713277,6.8526,145.85,145.8,5.73693185]
[1750910713576,6.8526,145.85,145.8,130.73693185]
[1750910713779,6.8526,145.85,145.82,6.8539]
[1750910714174,6.8526,145.85,145.8,130.73693185]
[1750910714473,6.8526,145.85,145.81,6.8541]
[1750910714979,6.8523,145.86,145.82,6.8539]
[1750910715374,39.46113185,145.88,145.82,6.8539]
[1750910715685,6.8524,145.86,145.82,6.8539]
[1750910716881,6.8524,145.86,145.83,6.8534]
[1750910718673,6.8526,145.85,145.82,6.8538]
[1750910718873,3.38113185,145.86,145.8,127.3558]
[1750910720678,6.8533,145.84,145.8,134.2105]
[1750910722182,6.8536,145.83,145.8,2.3558]
[1750910722379,6.8536,145.83,145.79,6.8552]
[1750910722684,3.38113185,145.82,145.77,170.2951]
[1750910722986,3.38113185,145.82,145.77,45.2951]
[1750910723286,6.8547,145.81,145.77,45.2951]
[1750910724581,6.8551,145.8,145.77,9.2151]
[1750910724886,6.8551,145.8,145.77,2.3589]
[1750910725987,3.38113185,145.8,145.75,134.1072]
[1750910726192,39.20113185,145.8,145.75,134.1072]
[1750910726579,6.8555,145.79,145.75,134.1072]
[1750910728487,6.8555,145.79,145.75,9.1072]
[1750910729086,6.8555,145.79,145.76,6.8567]
[1750910730691,39.20113185,145.8,145.75,9.1072]
[1750910730692,6.8559,145.78,145.75,9.1072]
[1750910730885,6.8559,145.78,145.75,2.2501]
[1750910731395,39.20113185,145.8,145.74,142.69960941]
[1750910731887,39.20113185,145.8,145.73,17.70650941]
[1750910732792,6.8568,145.76,145.73,10.84850941]
[1750910733992,6.8565,145.77,145.73,17.70660941]
[1750910734191,3.38113185,145.78,145.73,10.84850941]
[1750910734390,35.82,145.8,145.75,3.38113185]
[1750910734591,35.82,145.8,145.76,8.49220941]
[1750910734896,6.8543,145.82,145.76,8.49220941]
[1750910735100,35.84,145.83,145.77,3.38113185]
[1750910735395,35.84,145.83,145.78,10.78180941]
[1750910735594,6.8533,145.84,145.8,6.8545]
[1750910736997,6.8536,145.83,145.8,6.8545]
[1750910737398,6.8536,145.83,145.79,12.65433185]
[1750910738195,6.8536,145.83,145.8,6.8548]
[1750910738400,6.854,145.82,145.79,5.79913185]
[1750910739506,39.22113185,145.86,145.79,12.65423185]
[1750910739713,6.8536,145.83,145.79,12.65423185]